fUST/lending_fUST_20251216
["ID","MTS","AMOUNT","RATE_DAILY","PERIOD"]
[398573290,1765847745450,-151.0,0.00010958,2]
[398573291,1765847745486,-218.08557698,0.00010958,2]
[398573292,1765847745523,-151.0,0.00010958,2]
[398573293,1765847745566,-262.138631,0.00010958,2]
[398573294,1765847745603,-500.0,0.00010958,2]
[398573295,1765847745640,-500.0,0.00010958,2]
[398573296,1765847745675,-509.15197391,0.00010958,2]
[398573297,1765847745711,-357.99004549,0.00010958,2]
[398573298,1765847745747,-500.0,0.00010958,2]
[398573299,1765847745783,-563.24,0.00010958,2]
[398573300,1765847745817,-500.0,0.00010958,2]
[398573301,1765847745852,-500.0,0.00010958,2]
[398573302,1765847746037,-500.0,0.00010958,2]
[398573303,1765847746074,-500.0,0.00010958,2]
[398573304,1765847746111,-500.0,0.00010958,2]
[398573305,1765847746146,-500.0,0.00010958,2]
[398573306,1765847746182,-500.0,0.00010958,2]
[398573307,1765847746218,-500.0,0.00010958,2]
[398573308,1765847746254,-500.0,0.00010958,2]
[398573309,1765847746294,-500.0,0.00010958,2]
[398573310,1765847746330,-500.0,0.00010958,2]
[398573311,1765847746368,-500.0,0.00010958,2]
[398573312,1765847746404,-500.0,0.00010958,2]
[398573313,1765847746440,-500.0,0.00010958,2]
[398573314,1765847746477,-500.0,0.00010958,2]
[398573315,1765847746514,-500.0,0.00010958,2]
[398573316,1765847746550,-1462.39,0.00010958,2]
[398573317,1765847746587,-574.64,0.00010958,2]
[398573318,1765847746621,-500.0,0.00010958,2]
[398573319,1765847746657,-500.0,0.00010958,2]
[398573320,1765847746695,-500.0,0.00010958,2]
[398573321,1765847746731,-500.0,0.00010958,2]
[398573322,1765847746766,-500.0,0.00010958,2]
[398573323,1765847746801,-500.0,0.00010958,2]
[398573324,1765847746836,-516.3724905,0.00010958,2]
[398573325,1765847746876,-655.08,0.00010958,2]
[398573326,1765847746912,-500.0,0.00010958,2]
[398573327,1765847746949,-500.0,0.00010958,2]
[398573328,1765847746984,-500.4389371,0.00010958,2]
[398573329,1765847747018,-500.0,0.00010958,2]
[398573330,1765847747053,-500.0,0.00010958,2]
[398573331,1765847747088,-242.26895155,0.00010958,2]
[398573332,1765847747125,-595.57056927,0.00010958,2]
[398573333,1765847747162,-1018.68,0.00010958,2]
[398573334,1765847747197,-500.0,0.00010958,2]
[398573335,1765847747232,-504.37543774,0.00010958,2]
[398573336,1765847747267,-734.3,0.00010958,2]
[398573337,1765847747302,-460.4,0.00010958,2]
[398573338,1765847747339,-505.74,0.00010958,2]
[398573339,1765847747374,-500.90622183,0.00010958,2]
[398573340,1765847747409,-500.0,0.00010958,2]
[398573341,1765847747445,-500.0,0.00010958,2]
[398573342,1765847747632,-500.0,0.00010958,2]
[398573343,1765847747669,-500.0,0.00010958,2]
[398573344,1765847747705,-500.0,0.00010958,2]
[398573345,1765847747742,-500.0,0.00010958,2]
[398573346,1765847747778,-500.0,0.00010958,2]
[398573347,1765847747815,-500.0,0.00010958,2]
[398573348,1765847747854,-500.0,0.00010958,2]
[398573349,1765847747891,-500.0,0.00010958,2]
[398573350,1765847747930,-500.0,0.00010958,2]
[398573351,1765847747967,-500.0,0.00010958,2]
[398573352,1765847748005,-500.0,0.00010958,2]
[398573353,1765847748044,-500.0,0.00010958,2]
[398573354,1765847748083,-500.0,0.00010958,2]
[398573355,1765847748121,-1087.39,0.00010958,2]
[398573356,1765847748157,-500.0,0.00010958,2]
[398573357,1765847748194,-1977.39,0.00010958,2]
[398573358,1765847748230,-972.02,0.00010958,2]
[398573359,1765847748268,-500.0,0.00010958,2]
[398573360,1765847748305,-500.0,0.00010958,2]
[398573361,1765847748345,-500.0,0.00010958,2]
[398573362,1765847748383,-538.98,0.00010958,2]
[398573363,1765847748421,-500.0,0.00010958,2]
[398573364,1765847748458,-500.0,0.00010958,2]
[398573365,1765847748495,-562.55,0.00010958,2]
[398573366,1765847748531,-500.0,0.00010958,2]
[398573367,1765847748567,-1290.57,0.00010958,2]
[398573368,1765847748604,-500.0,0.00010958,2]
[398573369,1765847748642,-500.0,0.00010958,2]
[398573370,1765847748679,-500.0,0.00010958,2]
[398573371,1765847748718,-785.8,0.00010958,2]
[398573372,1765847748755,-321.4899616,0.00010958,2]
[398573373,1765847748791,-511.43090191,0.00010958,2]
[398573374,1765847748829,-939.96,0.00010958,2]
[398573375,1765847748869,-988.33,0.00010958,2]
[398573376,1765847748908,-500.0,0.00010958,2]
[398573377,1765847748946,-500.0,0.00010958,2]
[398573378,1765847748982,-500.0,0.00010958,2]
[398573379,1765847749020,-500.0,0.00010958,2]
[398573380,1765847749055,-500.0,0.00010958,2]
[398573381,1765847749241,-715.02,0.00010958,2]
[398573382,1765847749278,-897.25,0.00010958,2]
[398573383,1765847749315,-500.0,0.00010958,2]
[398573384,1765847749352,-506.69249151,0.00010958,2]
[398573385,1765847749388,-500.0,0.00010958,2]
[398573386,1765847749422,-500.0,0.00010958,2]
[398573387,1765847749460,-500.0,0.00010958,2]
[398573388,1765847749509,-500.0,0.00010958,2]
[398573389,1765847749551,-500.0,0.00010958,2]
[398573390,1765847749591,-501.02346906,0.00010958,2]
[398573391,1765847749629,-317.59795696,0.00010958,2]
[398573392,1765847750094,-244.60204304,0.00010958,2]
[398573393,1765847750103,-9.28293084,0.00010958,2]
[398573394,1765847750118,-195.42722903,0.00010958,2]
[398573395,1765847750127,-58.45774485,0.00010958,2]
[398573396,1765847750152,-239.672,0.00010958,2]
[398573397,1765847750174,-271.62515487,0.00010958,2]
[398573398,1765847750184,-320.6831644,0.00010958,2]
[398573399,1765847750195,-300.0,0.00010958,2]
[398573400,1765847750209,-1187.39193588,0.00010958,2]
[398573401,1765847750218,-500.0,0.00010958,2]
[398573402,1765847750227,-500.0,0.00010958,2]
[398573403,1765847750236,-1000.0,0.00010958,2]
[398573404,1765847750245,-538.95822495,0.00010958,2]
[398573405,1765847750254,-500.0,0.00010958,2]
[398573406,1765847750263,-440.99074027,0.00010958,2]
[398573407,1765847750272,-500.0,0.00010958,2]
[398573408,1765847750280,-500.0,0.00010958,2]
[398573409,1765847750290,-269.55070653,0.00010958,2]
[398573410,1765847750300,-500.0,0.00010958,2]
[398573411,1765847750310,-500.0,0.00010958,2]
[398573412,1765847750319,-500.0,0.00010958,2]
[398573413,1765847750330,-500.0,0.00010958,2]
[398573414,1765847750340,-500.0,0.00010958,2]
[398573415,1765847750350,-500.0,0.00010958,2]
[398573416,1765847750360,-500.0,0.00010958,2]
[398573417,1765847750371,-573.71241499,0.00010958,2]
[398573418,1765847750381,-526.45425658,0.00010958,2]
[398573419,1765847750391,-649.4,0.00010958,2]
[398573420,1765847750400,-500.0,0.00010958,2]
[398573421,1765847750410,-500.0,0.00010958,2]
[398573422,1765847750420,-707.59,0.00010958,2]
[398573423,1765847750429,-500.0,0.00010958,2]
[398573424,1765847750440,-262.1527666,0.00010958,2]
[398573425,1765847750449,-500.0,0.00010958,2]
[398573426,1765847750458,-742.27,0.00010958,2]
[398573427,1765847750468,-500.0,0.00010958,2]
[398573428,1765847750477,-541.84,0.00010958,2]
[398573429,1765847750486,-500.0,0.00010958,2]
[398573430,1765847750495,-500.0,0.00010958,2]
[398573431,1765847750505,-530.04478935,0.00010958,2]
[398573432,1765847750515,-1745.02,0.00010958,2]
[398573433,1765847750525,-500.0,0.00010958,2]
[398573434,1765847750534,-500.0,0.00010958,2]
[398573435,1765847750543,-500.0,0.00010958,2]
[398573436,1765847750552,-698.91,0.00010958,2]
[398573437,1765847750561,-811.8,0.00010958,2]
[398573438,1765847750571,-500.0,0.00010958,2]
[398573439,1765847750581,-500.0,0.00010958,2]
[398573440,1765847750590,-500.0,0.00010958,2]
[398573441,1765847750599,-500.0,0.00010958,2]
[398573442,1765847750608,-500.0,0.00010958,2]
[398573443,1765847750617,-520.01152444,0.00010958,2]
[398573444,1765847750626,-1092.08,0.00010958,2]
[398573445,1765847750635,-500.0,0.00010958,2]
[398573446,1765847750644,-500.0,0.00010958,2]
[398573447,1765847750653,-500.0,0.00010958,2]
[398573448,1765847750663,-568.15,0.00010958,2]
[398573449,1765847750672,-500.0,0.00010958,2]
[398573450,1765847750681,-500.0,0.00010958,2]
[398573451,1765847750690,-941.07,0.00010958,2]
[398573452,1765847750700,-500.0,0.00010958,2]
[398573453,1765847750709,-2398.44,0.00010958,2]
[398573454,1765847750718,-500.0,0.00010958,2]
[398573455,1765847750727,-500.0,0.00010958,2]
[398573456,1765847750736,-500.0,0.00010958,2]
[398573457,1765847750746,-500.0,0.00010958,2]
[398573458,1765847750756,-954.4,0.00010958,2]
[398573459,1765847750765,-500.0,0.00010958,2]
[398573460,1765847750775,-1860.5,0.00010958,2]
[398573461,1765847750784,-818.94,0.00010958,2]
[398573462,1765847750794,-500.0,0.00010958,2]
[398573463,1765847750803,-500.0,0.00010958,2]
[398573464,1765847750812,-500.0,0.00010958,2]
[398573465,1765847750821,-352.29678773,0.00010958,2]
[398573466,1765847750831,-500.0,0.00010958,2]
[398573467,1765847750841,-500.1821415,0.00010958,2]
[398573468,1765847750853,-500.0,0.00010958,2]
[398573469,1765847750863,-1355.17,0.00010958,2]
[398573470,1765847750872,-500.0,0.00010958,2]
[398573471,1765847750882,-500.30100632,0.00010958,2]
[398573472,1765847750892,-1722.9,0.00010958,2]
[398573473,1765847750901,-500.0,0.00010958,2]
[398573474,1765847750910,-500.0,0.00010958,2]
[398573475,1765847750919,-970.13,0.00010958,2]
[398573476,1765847750929,-500.0,0.00010958,2]
[398573477,1765847750938,-625.84011588,0.00010958,2]
[398573478,1765847750947,-500.0,0.00010958,2]
[398573479,1765847750956,-500.0,0.00010958,2]
[398573480,1765847750965,-500.0,0.00010958,2]
[398573481,1765847750975,-500.0,0.00010958,2]
[398573482,1765847750984,-500.0,0.00010958,2]
[398573483,1765847750993,-608.12,0.00010958,2]
[398573484,1765847751003,-500.0,0.00010958,2]
[398573485,1765847751012,-500.0,0.00010958,2]
[398573486,1765847751021,-500.0,0.00010958,2]
[398573487,1765847751030,-500.0,0.00010958,2]
[398573488,1765847751040,-500.0,0.00010958,2]
[398573489,1765847751049,-500.0,0.00010958,2]
[398573490,1765847751058,-500.0,0.00010958,2]
[398573491,1765847751068,-500.0,0.00010958,2]
[398573492,1765847751077,-500.0,0.00010958,2]
[398573493,1765847751086,-860.8,0.00010958,2]
[398573494,1765847751096,-500.0,0.00010958,2]
[398573495,1765847751105,-500.0,0.00010958,2]
[398573496,1765847751114,-270.95693556,0.00010958,2]
[398573497,1765847751124,-1711.24,0.00010958,2]
[398573498,1765847751133,-500.0,0.00010958,2]
[398573499,1765847751142,-500.0,0.00010958,2]
[398573500,1765847751151,-1106.09,0.00010958,2]
[398573501,1765847751161,-500.0,0.00010958,2]
[398573502,1765847751170,-462.18896854,0.00010958,2]
[398573503,1765847751179,-500.0,0.00010958,2]
[398573504,1765847751188,-500.0,0.00010958,2]
[398573505,1765847751197,-500.0,0.00010958,2]
[398573506,1765847751205,-500.0,0.00010958,2]
[398573507,1765847751215,-500.0,0.00010958,2]
[398573508,1765847751227,-500.0,0.00010958,2]
[398573509,1765847751242,-500.0,0.00010958,2]
[398573510,1765847751251,-500.0,0.00010958,2]
[398573511,1765847751260,-1013.48,0.00010958,2]
[398573512,1765847751269,-781.56,0.00010958,2]
[398573513,1765847751278,-1648.1,0.00010958,2]
[398573514,1765847751287,-500.0,0.00010958,2]
[398573515,1765847751296,-2302.49,0.00010958,2]
[398573516,1765847751304,-500.0,0.00010958,2]
[398573517,1765847751314,-311.19351503,0.00010958,2]
[398573518,1765847751322,-500.0,0.00010958,2]
[398573519,1765847751331,-1607.13,0.00010958,2]
[398573520,1765847751340,-2517.67384299,0.00010958,2]
[398573521,1765847751359,-414.44615701,0.00010958,2]
[398573522,1765847751368,-500.0,0.00010958,2]
[398573523,1765847751377,-500.0,0.00010958,2]
[398573524,1765847751386,-849.55384299,0.00010958,2]
[398573525,1765847751407,-254.13885885,0.00010958,2]
[398573526,1765847751434,-194.36729816,0.00010958,2]
[398573527,1765847751444,-646.41,0.00010958,2]
[398573528,1765847751453,-359.22270184,0.00010958,2]
[398573529,1765847751468,-140.77729816,0.00010958,2]
[398573530,1765847751477,-359.22270184,0.00010958,2]
[398573531,1765847751487,-155.37591619,0.00010958,2]
[398573532,1765847751503,-196.27138197,0.00010958,2]
[398573533,1765847751513,-49.6220228,0.00010958,2]
[398573534,1765847751527,-316.3060503,0.00010958,2]
[398573535,1765847751538,-277.88489189,0.00010958,2]
[398573536,1765847751570,-330.78703501,0.00010958,2]
[398573537,1765847751579,-169.21296499,0.00010958,2]
[398573538,1765847751590,-161.00341787,0.00010958,2]
[398573539,1765847751637,-169.78361714,0.00010958,2]
[398573540,1765847751647,-330.21638286,0.00010958,2]
[398573541,1765847751663,-500.0,0.00010958,2]
[398573542,1765847751675,-500.0,0.00010958,2]
[398573543,1765847751692,-161.05361714,0.00010958,2]
[398573544,1765847751701,-338.94638286,0.00010958,2]
[398573545,1765847751717,-466.28361714,0.00010958,2]
[398573546,1765847751726,-33.71638286,0.00010958,2]
[398573547,1765847751743,-466.28361714,0.00010958,2]
[398573548,1765847751753,-33.71638286,0.00010958,2]
[398573549,1765847751774,-466.28361714,0.00010958,2]
[398573550,1765847751784,-33.71638286,0.00010958,2]
[398573551,1765847751800,-466.28361714,0.00010958,2]
[398573552,1765847751809,-33.71638286,0.00010958,2]
[398573553,1765847751821,-466.28361714,0.00010958,2]
[398573554,1765847751830,-33.71638286,0.00010958,2]
[398573555,1765847751851,-466.28361714,0.00010958,2]
[398573556,1765847751860,-33.71638286,0.00010958,2]
[398573557,1765847751875,-466.28361714,0.00010958,2]
[398573558,1765847751885,-33.71638286,0.00010958,2]
[398573559,1765847751896,-342.44457199,0.00010958,2]
[398573560,1765847751927,-123.83904515,0.00010958,2]
[398573561,1765847751935,-376.16095485,0.00010958,2]
[398573562,1765847751951,-123.83904515,0.00010958,2]
[398573563,1765847751960,-376.16095485,0.00010958,2]
[398573564,1765847751972,-380.80904515,0.00010958,2]
[398573565,1765847751986,-119.19095485,0.00010958,2]
[398573566,1765847752254,-146.20259623,0.00010958,2]
[398573567,1765847752264,-353.79740377,0.00010958,2]
[398573568,1765847752285,-146.20259623,0.00010958,2]
[398573569,1765847752294,-492.72287713,0.00010958,2]
[398573570,1765847752305,-121.60688894,0.00010958,2]
[398573571,1765847752314,-378.39311106,0.00010958,2]
[398573572,1765847752335,-500.0,0.00010958,2]
[398573573,1765847752381,-500.0,0.00010958,2]
[398573574,1765847752392,-500.0,0.00010958,2]
[398573575,1765847752403,-500.0,0.00010958,2]
[398573576,1765847752419,-17.55688894,0.00010958,2]
[398573577,1765847752428,-482.44311106,0.00010958,2]
[398573578,1765847752439,-17.55688894,0.00010958,2]
[398573579,1765847752447,-273.5439527,0.00010958,2]
[398573580,1765847752456,-208.89915836,0.00010958,2]
[398573581,1765847752473,-1146.04084164,0.00010958,2]
[398573582,1765847752482,-465.25254318,0.00010958,2]
[398573583,1765847752491,-281.45661518,0.00010958,2]
[398573584,1765847752506,-218.54338482,0.00010958,2]
[398573585,1765847752515,-404.06661518,0.00010958,2]
[398573586,1765847752531,-95.93338482,0.00010958,2]
[398573587,1765847752540,-500.23597644,0.00010958,2]
[398573588,1765847752549,-784.55,0.00010958,2]
[398573589,1765847752558,-500.0,0.00010958,2]
[398573590,1765847752568,-500.0,0.00010958,2]
[398573591,1765847752577,-17.71063874,0.00010958,2]
[398573592,1765847752589,-482.28936126,0.00010958,2]
[398573593,1765847752597,-17.71063874,0.00010958,2]
[398573594,1765847752613,-500.0,0.00010958,2]
[398573595,1765847752629,-1.36998803,0.00010958,2]
[398573596,1765847752639,-498.63001197,0.00010958,2]
[398573597,1765847752650,-1.36998803,0.00010958,2]
[398573598,1765847752659,-498.63001197,0.00010958,2]
[398573599,1765847752676,-649.03,0.00010958,2]
[398573600,1765847752688,-305.24998803,0.00010958,2]
[398573601,1765847752697,-194.75001197,0.00010958,2]
[398573602,1765847752709,-305.24998803,0.00010958,2]
[398573603,1765847752718,-194.75001197,0.00010958,2]
[398573604,1765847752734,-305.24998803,0.00010958,2]
[398573605,1765847752743,-194.75001197,0.00010958,2]
[398573606,1765847752760,-792.36,0.00010958,2]
[398573607,1765847752777,-133.11998803,0.00010958,2]
[398573608,1765847752786,-366.88001197,0.00010958,2]
[398573609,1765847752861,-194.24567986,0.00010958,2]
[398573610,1765847752871,-500.0,0.00010958,2]
[398573611,1765847752880,-1268.84432014,0.00010958,2]
[398573612,1765847752929,-56.00567986,0.00010958,2]
[398573613,1765847752939,-500.0,0.00010958,2]
[398573614,1765847752949,-500.0,0.00010958,2]
[398573615,1765847752958,-273.29432014,0.00010958,2]
[398573616,1765847752991,-226.70567986,0.00010958,2]
[398573617,1765847753000,-500.0,0.00010958,2]
[398573618,1765847753010,-366.55432014,0.00010958,2]
[398573619,1765847753022,-293.99567986,0.00010958,2]
[398573620,1765847753031,-206.00432014,0.00010958,2]
[398573621,1765847753062,-293.99567986,0.00010958,2]
[398573622,1765847753072,-206.00432014,0.00010958,2]
[398573623,1765847753096,-500.0,0.00010958,2]
[398573624,1765847753109,-291.42567986,0.00010958,2]
[398573625,1765847753119,-208.57432014,0.00010958,2]
[398573626,1765847753136,-427.33567986,0.00010958,2]
[398573627,1765847753145,-72.66432014,0.00010958,2]
[398573628,1765847753207,-500.0,0.00010958,2]
[398573629,1765847753226,-500.0,0.00010958,2]
[398573630,1765847753239,-151.0,0.00010958,2]
[398573631,1765847753256,-151.0,0.00010958,2]
[398573632,1765847753267,-151.0,0.00010958,2]
[398573633,1765847753312,-151.0,0.00010958,2]
[398573634,1765847753395,-151.0,0.00010958,2]
[398573635,1765847753408,-151.0,0.00010958,2]
[398573636,1765847753419,-151.0,0.00010958,2]
[398573637,1765847753438,-134.90567986,0.00010958,2]
[398573638,1765847753448,-372.04432014,0.00010958,2]
[398573639,1765847753460,-151.0,0.00010958,2]
[398573640,1765847753472,-112.21726329,0.00010958,2]
[398573641,1765847753481,-38.78273671,0.00010958,2]
[398573642,1765847753504,-466.07138678,0.00010958,2]
[398573643,1765847753514,-33.92861322,0.00010958,2]
[398573644,1765847753527,-151.0,0.00010958,2]
[398573645,1765847753538,-315.07138678,0.00010958,2]
[398573646,1765847753547,-184.92861322,0.00010958,2]
[398573647,1765847753563,-151.0,0.00010958,2]
[398573648,1765847753575,-151.0,0.00010958,2]
[398573649,1765847753587,-13.07138678,0.00010958,2]
[398573650,1765847753596,-137.92861322,0.00010958,2]
[398573651,1765847753618,-151.0,0.00010958,2]
[398573652,1765847753630,-151.0,0.00010958,2]
[398573653,1765847753641,-60.07138678,0.00010958,2]
[398573654,1765847753651,-90.92861322,0.00010958,2]
[398573655,1765847753668,-151.0,0.00010958,2]
[398573656,1765847753679,-218.08557698,0.00010958,2]
[398573657,1765847753690,-39.9858098,0.00010958,2]
[398573658,1765847753700,-111.0141902,0.00010958,2]
[398573659,1765847753712,-262.138631,0.00010958,2]
[398573660,1765847753734,-126.8471788,0.00010958,2]
[398573661,1765847753745,-373.1528212,0.00010958,2]
[398573662,1765847753756,-500.0,0.00010958,2]
[398573663,1765847753769,-53.9371788,0.00010958,2]
[398573664,1765847753779,-455.21479511,0.00010958,2]
[398573665,1765847753795,-44.78520489,0.00010958,2]
[398573666,1765847753805,-313.2048406,0.00010958,2]
[398573667,1765847753817,-186.7951594,0.00010958,2]
[398573668,1765847753827,-313.2048406,0.00010958,2]
[398573669,1765847753902,-563.24,0.00010958,2]
[398573670,1765847753926,-500.0,0.00010958,2]
[398573671,1765847753939,-500.0,0.00010958,2]
[398573672,1765847753952,-500.0,0.00010958,2]
[398573673,1765847754072,-500.0,0.00010958,2]
[398573674,1765847754085,-394.7351594,0.00010958,2]
[398573675,1765847754095,-105.2648406,0.00010958,2]
[398573676,1765847754114,-394.7351594,0.00010958,2]
[398573677,1765847754135,-105.2648406,0.00010958,2]
[398573678,1765847754199,-394.7351594,0.00010958,2]
[398573679,1765847754208,-105.2648406,0.00010958,2]
[398573680,1765847754263,-500.0,0.00010958,2]
[398573681,1765847754275,-500.0,0.00010958,2]
[398573682,1765847754296,-500.0,0.00010958,2]
[398573683,1765847754307,-500.0,0.00010958,2]
[398573684,1765847754319,-327.6851594,0.00010958,2]
[398573685,1765847754329,-172.3148406,0.00010958,2]
[398573686,1765847754341,-327.6851594,0.00010958,2]
[398573687,1765847754351,-172.3148406,0.00010958,2]
[398573688,1765847754363,-327.6851594,0.00010958,2]
[398573689,1765847754372,-172.3148406,0.00010958,2]
[398573690,1765847754383,-327.6851594,0.00010958,2]
[398573691,1765847754392,-172.3148406,0.00010958,2]
[398573692,1765847754403,-327.6851594,0.00010958,2]
[398573693,1765847754412,-172.3148406,0.00010958,2]
[398573694,1765847754432,-327.6851594,0.00010958,2]
[398573695,1765847754442,-500.0,0.00010958,2]
[398573696,1765847754452,-634.7048406,0.00010958,2]
[398573697,1765847754464,-574.64,0.00010958,2]
[398573698,1765847754475,-436.4651594,0.00010958,2]
[398573699,1765847754484,-63.5348406,0.00010958,2]
[398573700,1765847754495,-436.4651594,0.00010958,2]
[398573701,1765847754505,-63.5348406,0.00010958,2]
[398573702,1765847754517,-436.4651594,0.00010958,2]
[398573703,1765847754526,-63.5348406,0.00010958,2]
[398573704,1765847754538,-436.4651594,0.00010958,2]
[398573705,1765847754547,-63.5348406,0.00010958,2]
[398573706,1765847754558,-436.4651594,0.00010958,2]
[398573707,1765847754568,-63.5348406,0.00010958,2]
[398573708,1765847754588,-436.4651594,0.00010958,2]
[398573709,1765847754597,-63.5348406,0.00010958,2]
[398573710,1765847754608,-436.4651594,0.00010958,2]
[398573711,1765847754617,-79.9073311,0.00010958,2]
[398573712,1765847754628,-420.0926689,0.00010958,2]
[398573713,1765847754638,-234.9873311,0.00010958,2]
[398573714,1765847754649,-500.0,0.00010958,2]
[398573715,1765847754660,-214.9126689,0.00010958,2]
[398573716,1765847754669,-285.0873311,0.00010958,2]
[398573717,1765847754680,-500.4389371,0.00010958,2]
[398573718,1765847754693,-500.0,0.00010958,2]
[398573719,1765847754705,-500.0,0.00010958,2]
[398573720,1765847754717,-242.26895155,0.00010958,2]
[398573721,1765847754729,-293.55478025,0.00010958,2]
[398573722,1765847754738,-302.01578902,0.00010958,2]
[398573723,1765847754750,-197.98421098,0.00010958,2]
[398573724,1765847754760,-500.0,0.00010958,2]
[398573725,1765847754769,-320.69578902,0.00010958,2]
[398573726,1765847754780,-179.30421098,0.00010958,2]
[398573727,1765847754790,-320.69578902,0.00010958,2]
[398573728,1765847754802,-179.30421098,0.00010958,2]
[398573729,1765847754811,-325.07122676,0.00010958,2]
[398573730,1765847754823,-174.92877324,0.00010958,2]
[398573731,1765847754833,-559.37122676,0.00010958,2]
[398573732,1765847754845,-460.4,0.00010958,2]
[398573733,1765847754860,-407.46877324,0.00010958,2]
[398573734,1765847754870,-98.27122676,0.00010958,2]
[398573735,1765847754887,-500.90622183,0.00010958,2]
[398573736,1765847754902,-427.71255141,0.00010958,2]
[398573737,1765847754913,-72.28744859,0.00010958,2]
[398573738,1765847754937,-500.0,0.00010958,2]
[398573739,1765847754952,-54.51255141,0.00010958,2]
[398573740,1765847754962,-445.48744859,0.00010958,2]
[398573741,1765847754977,-54.51255141,0.00010958,2]
[398573742,1765847754986,-445.48744859,0.00010958,2]
[398573743,1765847754999,-54.51255141,0.00010958,2]
[398573744,1765847755010,-445.48744859,0.00010958,2]
[398573745,1765847755021,-54.51255141,0.00010958,2]
[398573746,1765847755031,-445.48744859,0.00010958,2]
[398573747,1765847755042,-500.0,0.00010958,2]
[398573748,1765847755057,-500.0,0.00010958,2]
[398573749,1765847755074,-500.0,0.00010958,2]
[398573750,1765847755085,-500.0,0.00010958,2]
[398573751,1765847755101,-500.0,0.00010958,2]
[398573752,1765847755112,-399.72255141,0.00010958,2]
[398573753,1765847755122,-100.27744859,0.00010958,2]
[398573754,1765847755133,-399.72255141,0.00010958,2]
[398573755,1765847755143,-100.27744859,0.00010958,2]
[398573756,1765847755154,-399.72255141,0.00010958,2]
[398573757,1765847755164,-100.27744859,0.00010958,2]
[398573758,1765847755175,-399.72255141,0.00010958,2]
[398573759,1765847755184,-100.27744859,0.00010958,2]
[398573760,1765847755197,-399.72255141,0.00010958,2]
[398573761,1765847755206,-500.0,0.00010958,2]
[398573762,1765847755216,-187.66744859,0.00010958,2]
[398573763,1765847755234,-500.0,0.00010958,2]
[398573764,1765847755245,-977.51255141,0.00010958,2]
[398573765,1765847755255,-500.0,0.00010958,2]
[398573766,1765847755265,-499.87744859,0.00010958,2]
[398573767,1765847755276,-0.12255141,0.00010958,2]
[398573768,1765847755285,-500.0,0.00010958,2]
[398573769,1765847755294,-471.89744859,0.00010958,2]
[398573770,1765847755306,-28.10255141,0.00010958,2]
[398573771,1765847755315,-471.89744859,0.00010958,2]
[398573772,1765847755327,-500.0,0.00010958,2]
[398573773,1765847755340,-10.31255141,0.00010958,2]
[398573774,1765847755350,-489.68744859,0.00010958,2]
[398573775,1765847755362,-10.31255141,0.00010958,2]
[398573776,1765847755371,-500.0,0.00010958,2]
[398573777,1765847755380,-28.66744859,0.00010958,2]
[398573778,1765847755392,-471.33255141,0.00010958,2]
[398573779,1765847755402,-28.66744859,0.00010958,2]
[398573780,1765847755414,-500.0,0.00010958,2]
[398573781,1765847755432,-562.55,0.00010958,2]
[398573782,1765847755444,-500.0,0.00010958,2]
[398573783,1765847755455,-965.44255141,0.00010958,2]
[398573784,1765847755464,-291.535223,0.00010958,2]
[398573785,1765847755474,-33.59222559,0.00010958,2]
[398573786,1765847755486,-257.94299741,0.00010958,2]
[398573787,1765847755495,-242.05700259,0.00010958,2]
[398573788,1765847755506,-49.47822041,0.00010958,2]
[398573789,1765847755516,-291.535223,0.00010958,2]